Cogmind - Beta 13 @@@ ROGUE MODE // 2024.07.13 @ 01:48:29 Player: APerTAS Result: Destroyed by G-47 Trooper with Particle Gun Performance ------------- Evolutions (2) 1000 Regions Visited (4) 800 Robots Destroyed (3) 15 Value Destroyed (139) 139 Prototype IDs (2) 40 Alien Tech Used (0) 0 Bonus (470) 470 TOTAL SCORE: 2464 Bonus ------- Pacifist 470 Cogmind --------- Core Integrity 0/550 Matter 300/300 Energy 100/100 System Corruption 2% Temperature Cool (9) Movement Core (50) Location -8/Materials Parts ------- > --- POWER (2) -------- (None) > --- PROPULSION (3) --- (None) > --- UTILITY (4) ------ Improved Terrain Scan Processor > --- WEAPON (2) ------- (None) > --- INVENTORY (5) ---- (None) Peak State ------------ > --- POWER ------------ Light Nuclear Core > --- PROPULSION ------- Improved Treads Improved Flight Unit > --- UTILITY ---------- Cooling System Terrain Scan Processor Improved Terrain Scan Processor > --- WEAPON ----------- Beam Cannon > --- INVENTORY -------- Improved Light Cannon [Rating: 16] Favorites ----------- Power Light Nuclear Core Engine Light Ion Engine Power Core Light Nuclear Core Propulsion Improved Flight Unit Treads Improved Treads Flight Unit Improved Flight Unit Utility Terrain Scan Processor Device Terrain Scanner Processor Terrain Scan Processor Weapon Beam Cannon Energy Cannon Beam Cannon Ballistic Cannon Improved Light Cannon Special Melee Weapon Datajack Build | -11 -10 -9 -9 -8 ------- Run | Yrd Mat Mat Min Mat Slots Evolved 4 | . . 2 . 2 Power 1 | . . . . 1 Propulsion 1 | . . 1 . . Utility 2 | . . 1 . 1 Weapon . | . . . . . Parts Attached 12 | . . 3 . 9 Power 3 | . . . . 3 Engine 1 | . . . . 1 Core 2 | . . . . 2 Reactor . | . . . . . Propulsion 2 | . . . . 2 Treads 1 | . . . . 1 Leg . | . . . . . Wheel . | . . . . . Hover . | . . . . . Flight 1 | . . . . 1 Utility 4 | . . 2 . 2 Device 2 | . . 1 . 1 Storage . | . . . . . Processor 2 | . . 1 . 1 Hackware . | . . . . . Protection . | . . . . . Artifact . | . . . . . Weapon 3 | . . 1 . 2 Energy Gun . | . . . . . Energy Cannon 1 | . . . . 1 Ballistic Gun . | . . . . . Ballistic Cannon 1 | . . . . 1 Launcher . | . . . . . Special Weapon . | . . . . . Impact Weapon . | . . . . . Slashing Weapon . | . . . . . Piercing Weapon . | . . . . . Special Melee Weapon 1 | . . 1 . . Unidentified Prototypes 2 | . . . . 2 Parts Lost 12 | . . 1 . 11 Power 4 | . . . . 4 Propulsion 2 | . . . . 2 Utility 3 | . . . . 3 Weapon 3 | . . 1 . 2 Highest Loss Streak 11 | . . 1 . 11 To Critical Strikes . | . . . . . Average Slot Usage (%) 17 | . . 22 22 31 Core 1 | . . . . 4 Device 5 | . . 9 11 7 Processor 8 | . . 9 11 14 Naked Turns 155 | . 146 9 . . Heaviest Build 6 | . . 2 1 6 Greatest Support 23 | 3 3 3 3 23 Greatest Overweight (x) 1 | . . . . 1 Average Overweight (x) . | . . . . . Largest Inventory Capacity 5 | 5 5 5 5 5 Average Capacity 5 | 5 5 5 5 5 Most Carried 5 | . 2 4 4 5 Average Carried 2 | . . 3 4 3 Final Capacity 5 | 5 5 5 5 5 Final Carried 4 | . 2 4 4 . Class Distribution -------------------- 100% | Mutant Dominant Class ---------------- Mutant | -10/Materials Mutant | -9/Materials Mutant | -9/Mines Mutant | -8/Materials Resources | -11 -10 -9 -9 -8 ----------- Run | Yrd Mat Mat Min Mat Matter Collected 299 | 66 134 . . 99 Remotely . | . . . . . Salvage Created 128 | . . . . 128 Parts 8 | . . . . 8 Haulers Intercepted . | . . . . . Recyclers Shooed . | . . . . . Parts Field Recycled . | . . . . . Retrieved Matter . | . . . . . Parts Self-Destructed . | . . . . . Prevented . | . . . . . Kills | -11 -10 -9 -9 -8 ------- Run | Yrd Mat Mat Min Mat Combat Hostiles Destroyed 3 | . . . . 3 Cannons 3 | . . . . 3 Classes Destroyed 2 | . . . . 2 Grunt 2 | . . . . 2 Sentry 1 | . . . . 1 Best Kill Streak 3 | . . . . 3 Combat Bots Only 3 | . . . . 3 Max Kills in Single Turn 1 | . . . . 1 Gunslinging . | . . . . . Exploded . | . . . . . Melee . | . . . . . Uniques/NPCs Destroyed . | . . . . . Combat | -11 -10 -9 -9 -8 -------- Run | Yrd Mat Mat Min Mat Hostile Shots Fired 117 | . 1 8 . 108 Missed 35 | . . 4 . 31 Damage Taken 1268 | . 14 63 . 1191 Core 609 | . 14 31 . 564 Absorbed by Shields . | . . . . . Core Remaining (%) 95 | 100 94 . 92 . Volleys Fired 11 | . . . . 11 Largest 2 | . . . . 2 Hottest 99 | . . . . 99 Shots Fired 16 | . . . . 16 Gun . | . . . . . Cannon 16 | . . . . 16 Launcher . | . . . . . Special . | . . . . . Kinetic 5 | . . . . 5 Thermal 11 | . . . . 11 Explosive . | . . . . . Electromagnetic . | . . . . . Robot Hit Streak 13 | . . . . 13 Robot Miss Streak 1 | . . . . 1 Penetration Max . | . . . . . Secondary Targets . | . . . . . Shots Hit Robots 16 | . . 1 . 15 Core Hits 7 | . 1 . . 6 Critical Kills . | . . . . . Critical Parts Destroyed . | . . . . . Critical Strikes . | . . . . . Melee Attacks 1 | . . 1 . . Impact . | . . . . . Slashing . | . . . . . Piercing . | . . . . . Sneak Attacks . | . . . . . Combat Hostiles . | . . . . . Follow-up Attacks . | . . . . . Damage Inflicted 359 | . 5 . . 354 Guns . | . . . . . Cannons 292 | . . . . 292 Explosions . | . . . . . Melee . | . . . . . Ramming 67 | . 5 . . 62 Kinetic 99 | . . . . 99 Thermal 193 | . . . . 193 Explosive . | . . . . . Electromagnetic . | . . . . . Impact . | . . . . . Slashing . | . . . . . Piercing . | . . . . . Highest Corruption . | . . . . . Average Corruption . | . . . . . Corruption Purged . | . . . . . Corruption Blocked . | . . . . . Overload Shots . | . . . . . Overflow Damage . | . . . . . Projectiles . | . . . . . Explosions . | . . . . . Melee . | . . . . . Knockbacks 2 | . . . . 2 Impact 2 | . . . . 2 Kinetic . | . . . . . Secondary . | . . . . . Self-Inflicted Damage 30 | . 2 . . 28 Shots . | . . . . . Rammed 18 | . 1 . . 17 Targets Rammed 18 | . 1 . . 17 Kicked . | . . . . . Crushed . | . . . . . Highest Temperature 10 | . . . . 10 Average Temperature 4 | . . . . 4 Received Heat Transfer 591 | . 6 9 . 576 Siege Activations . | . . . . . Robots Corrupted . | . . . . . Combat Hostiles . | . . . . . Parts Fried . | . . . . . Impact Corruptions . | . . . . . Robots Melted . | . . . . . Combat Hostiles . | . . . . . Parts Melted . | . . . . . Heat Transferred 407 | . . . . 407 Parts Sabotaged . | . . . . . Parts Stolen . | . . . . . Parts Stripped . | . . . . . Power Chain Reactions . | . . . . . Alert | -11 -10 -9 -9 -8 ------- Run | Yrd Mat Mat Min Mat Peak Influence 65 | . 60 65 25 50 Initial 25 | . . 25 25 9 Average 22 | . 17 40 25 20 Maximum Alert Level . | . . . . . Low Security (%) 100 | 100 100 100 100 100 Level 1 . | . . . . . Level 2 . | . . . . . Level 3 . | . . . . . Level 4 . | . . . . . Level 5 . | . . . . . High Security . | . . . . . Max Security . | . . . . . Squads Dispatched 8 | . 3 2 . 3 Investigation 6 | . 2 1 . 3 Extermination . | . . . . . Reinforcement 2 | . 1 1 . . Assault . | . . . . . Garrison . | . . . . . Intercept . | . . . . . Searches Triggered . | . . . . . Construction Impeded . | . . . . . Haulers Reinforced . | . . . . . Active Scanning Responses . | . . . . . Cargo Convoy Interrupts . | . . . . . Stealth | -11 -10 -9 -9 -8 --------- Run | Yrd Mat Mat Min Mat Distress Signals 3 | . . 2 . 1 Communications Jammed . | . . . . . Distress Signals . | . . . . . Times Spotted 25 | . 6 5 2 12 Peak Tracking Total 10 | . 4 6 2 10 Tactical Retreats 1 | . 1 . . . Traps | -11 -10 -9 -9 -8 ------- Run | Yrd Mat Mat Min Mat Traps Triggered 1 | . 1 . . . Indirectly . | . . . . . Trap Hack Attempts . | . . . . . Triggered . | . . . . . Disarmed . | . . . . . Reprogrammed . | . . . . . Reused . | . . . . . Traps Extracted . | . . . . . Installed . | . . . . . Triggered . | . . . . . Machines | -11 -10 -9 -9 -8 ---------- Run | Yrd Mat Mat Min Mat Machines Disabled . | . . . . . Max in Single Turn . | . . . . . Machines Repaired . | . . . . . Machines Dismantled . | . . . . . Machines Sabotaged . | . . . . . Overloaded Fab Kills . | . . . . . Hacking | -11 -10 -9 -9 -8 --------- Run | Yrd Mat Mat Min Mat Machines Accessed 5 | . 1 1 . 3 Terminals 5 | . 1 1 . 3 Fabricators . | . . . . . Repair Stations . | . . . . . Recycling Units . | . . . . . Scanalyzers . | . . . . . Garrison Access . | . . . . . Total Hacks 14 | . 5 3 . 6 Successful 3 | . 1 1 . 1 Failed 11 | . 4 2 . 5 Catastrophic 4 | . 1 . . 3 Database Lockouts . | . . . . . Manual 9 | . 3 5 . 1 Terminals 14 | . 5 3 . 6 Fabricators . | . . . . . Repair Stations . | . . . . . Recycling Units . | . . . . . Scanalyzers . | . . . . . Garrison Access . | . . . . . Terminal Hacks 3 | . 1 1 . 1 Record 2 | . 1 1 . . Alert Level 1 | . . . . 1 Fabricator Hacks . | . . . . . Repair Station Hacks . | . . . . . Recycling Unit Hacks . | . . . . . Scanalyzer . | . . . . . Garrison Access Hacks . | . . . . . Unauthorized Hacks . | . . . . . Terminals . | . . . . . Fabricators . | . . . . . Repair Stations . | . . . . . Recycling Units . | . . . . . Scanalyzers . | . . . . . Garrison Access . | . . . . . Data Cores Recovered . | . . . . . Used . | . . . . . Hacking Detections 5 | . 1 1 . 3 Full Trace Events 5 | . 1 1 . 3 Feedback Events . | . . . . . Feedback Blocked . | . . . . . Robot Schematics Acquired . | . . . . . Robots Built . | . . . . . Authchips . | . . . . . Time . | . . . . . Total Robot Build Rating . | . . . . . Part Schematics Acquired . | . . . . . Parts Built . | . . . . . Authchips . | . . . . . Time . | . . . . . Total Part Build Rating . | . . . . . Parts Repaired . | . . . . . Time . | . . . . . Parts Recycled . | . . . . . Recycled Matter . | . . . . . Retrieved Matter . | . . . . . Retrieved Components . | . . . . . Parts Scanalyzed . | . . . . . Part Schematics Acquired . | . . . . . Parts Damaged . | . . . . . Bothacking | -11 -10 -9 -9 -8 ------------ Run | Yrd Mat Mat Min Mat Used RIF Installer . | . . . . . Robots Hacked 1 | . . 1 . . Non-combat 1 | . . 1 . . Combat . | . . . . . Robot Hacks Applied 1 | . . 1 . . parse_system 1 | . . 1 . . Relay Couplers Released . | . . . . . Fabnet Peak Effective % . | . . . . . Robots Rewired . | . . . . . Allies Hacked . | . . . . . Hacks Repelled . | . . . . . Allies | -11 -10 -9 -9 -8 -------- Run | Yrd Mat Mat Min Mat Total Allies . | . . . . . Largest Group . | . . . . . Highest-Rated Group . | . . . . . Highest-Rated Ally . | . . . . . Total Orders . | . . . . . Ally Attacks . | . . . . . Total Damage . | . . . . . Kills . | . . . . . Allies Corrupted . | . . . . . Allies Melted . | . . . . . Intel | -11 -10 -9 -9 -8 ------- Run | Yrd Mat Mat Min Mat Robot Analysis Total . | . . . . . Derelict Logs Recovered . | . . . . . Drone Launches . | . . . . . Drone Recoveries . | . . . . . Exploration | -11 -10 -9 -9 -8 ------------- Run | Yrd Mat Mat Min Mat Turns Passed 408 | 12 146 81 10 159 Spaces Moved 577 | 23 286 121 20 127 Core 553 | 23 286 121 20 103 Treads 2 | . . . . 2 Legs . | . . . . . Wheels . | . . . . . Hover . | . . . . . Flight 22 | . . . . 22 Fastest Speed 40 | 50 50 50 50 40 Average Speed 55 | 50 50 50 50 75 Slowest Speed 160 | 50 50 50 50 160 Overloaded Moves . | . . . . . Propulsion Burnouts . | . . . . . Robots Hopped . | . . . . . Cave-ins Triggered . | . . . . . Exploration Rate (%) 17 | 4 39 16 11 15 Regions Visited 4 Branch Regions 1 Pre-discovered Areas . | . . . . . Known Exits Taken . | . . . . . Unknown Exits Taken 4 | 1 1 1 1 . Scrap Searched . | . . . . . Spaces Dug . | . . . . . Terrain Destroyed . | . . . . . Melee . | . . . . . Projectile . | . . . . . AOE . | . . . . . Terrain Rammed . | . . . . . Walls Destroyed . | . . . . . Machines Disabled . | . . . . . Actions | -11 -10 -9 -9 -8 --------- Run | Yrd Mat Mat Min Mat Total 644 | 22 288 140 19 175 Wait 11 | . . 11 . . Move 573 | 22 285 120 19 127 Hop . | . . . . . Pick Up 15 | . 2 5 . 8 Fast Attach . | . . . . . Attach 13 | . . 3 . 10 Detach . | . . . . . Swap . | . . . . . Drop 2 | . . . . 2 Fire 11 | . . . . 11 Melee 1 | . . 1 . . Ram 18 | . 1 . . 17 Kick . | . . . . . Crush . | . . . . . Escape Stasis . | . . . . . Rewire . | . . . . . Trap . | . . . . . Miscellaneous . | . . . . . Route ------- -11/Scrapyard -10/Materials -9/Materials -9/Mines -8/Materials History --------- Turn | Location | Event 2 | -11/Scrapyard | Discovered new exit (range 16) 13 | -11/Scrapyard | Entered Materials 155 | -10/Materials | Discovered new exit (range 4) 159 | -10/Materials | Entered another Materials area 159 | -9/Materials | Evolved 2 slots: Propulsion x1, Utility x1 232 | -9/Materials | Discovered new exit (range 13) 240 | -9/Materials | Entered Mines 244 | -9/Mines | Discovered new exit (range 9) 250 | -9/Mines | Entered Materials 250 | -8/Materials | Evolved 2 slots: Power x1, Utility x1 301 | -8/Materials | Build established: Mutant 368 | -8/Materials | Core integrity fell below 50% 401 | -8/Materials | Core integrity fell below 20% 409 | -8/Materials | Destroyed by G-47 Trooper with Particle Gun Last Messages --------------- Slammed into G-47 Trooper. K-01 Serf collects debris. Critical hit (Burn: +37). Acquired 1 matter. Slammed into G-47 Trooper. K-01 Serf collects debris. Lgt. Ion Engine destroyed. Cooling System destroyed. Slammed into G-47 Trooper. G-47 Trooper knocked back. Destabilizing: System interference. Terrain Scan Processor temporarily disabled. Slammed into G-47 Trooper. K-01 Serf collects debris. Slammed into G-47 Trooper. Terrain Scan Processor broken. Destabilizing: Short circuit. Slammed into G-47 Trooper. Broken Terrain Scan Processor destroyed. System corrupted by crushing effect (+2). Map ----- +----------------------------------------------------+ | ?????????????????????????????????????????????????? | | ?????????????????????????????????????????????????? | | ?????????????????????????????????????????????????? | | ?????????????????????????????????????????????????? | | ?????????????????????????????????????????????????? | | ?????????????????????????????????????????????????? | | ?????????????????????????????????????????????????? | | ?????????????????????????????????????????????????? | | ?????????????????????????????????????????????????? | | ?????????????????????????????????????????????????? | | ?????????????????????????????????????????????????? | | ?????????????????????????????????????????????????? | | ?????????????????????????????????????????????????? | | ?????????????????????????????????????????????????? | | ?????????????????????????????????????????????????? | | ?????????????????????????????????????????????????? | | ?????????????????????????????????????????????????? | | ?????????????????????????????????????????????????? | | ????????????????????????????????? ? ?????????????? | | ??????????????????????? ???????? ??? ? ?????????? | | ??????????????????????????????????????? ?? ??????? | | ???????????????????????????##??????#?????????????? | | ???????????????##########???##???????????????????? | | ???????????????# #??#??#??#?#?????????????? | | ???????????????# """ ########??????????#??????? | | ???????????????# """ %= #@ #############???? ?? | | ???????????????# """ %=%# g ww ?? ???? | | ???????????????# =%%+% rg Y ??????? | | ???????????????# """ #Y% gl ?????? | | ???????????????# """ # ###########????????? | | ???????????????# """ ## ## #######??#??#????? | | ???????????????# ## # *= #?????? ?????? | | ???????????????########### # * = #??????????+?? | | ????????????????#????????# + ##??? ???????? | | ????????????????##??#?#### # " " #?#??#?#?????? | | ??????????????????##???#?# # "R" #????????#???? | | ??????????????????#####?## # """ #####?#?? ???? | | ???????????????#??# # ########????????????? | | ??????????????????# # #?#?#????###?#??????? | | ??????????????????+ """ # #??? ???? #??? ? ???? | | ????????????????#?? """ + ##?? ?""S #?#???????? | | ??????????#???????? """ # #?#????? #???#??#??? | | ?????????????????## # #?#? ? #?#??????#? | | ??????????? ???########### #?# ? ##????##??? | | ??????????????## # ### #?##?#??### | | ??????????????## """ # ### """ #?#?????#?? | | ???????????????# """ "T" # #?# """ ##?#?#????? | | ????????????#??# """* + ### """ #####?##??? | | ???????????????# """ # ##? """ ##?????#?? | | ??????????????## # ##??? ????????##? | +----------------------------------------------------+ Best States ------------- Heat Dissipation 53 Energy Generation 14 Energy Capacity 160 Matter Stores 300 Matter Capacity 300 Sight Range 16 Terrain Scan Range 14 Terrain Scan Density 185 Evasion (%) 62 Recoil Reduction 1 Item Schematics ----------------- None Robot Schematics ------------------ None Fabricated ------------ Nothing Alien Tech Used ----------------- None Achievements -------------- Party Time Challenges ------------ None Game ------ Seed BoreMagneticBoomstick Manual? 0 Play Time 00:11:20 Cumulative 14.2 hours Start 2024.07.13 @ 01:40:19 End 2024.07.13 @ 01:48:29 Sessions 1 Manual Loads 0 Difficulty Rogue Special Mode None Game No. 41 Rogue 41 Adventurer 0 Explorer 0 Win Type - Total 0 Types 0/0/0/0/0/0/0/0/0 Lore% 21 Gallery% 20 Achievement% 17 Wizard Run 0 Options --------- Layout 1 ASCII 0 Keyboard 0 Movement Arrows Keybinds 0 Fullscreen 1 Font 28/Dina Map View 50x43 Zoom Use 0% Tactical HUD 0 Map Filters NONE Filters NONE Steam 1 RUN: da308d09-89c1-46b2-96e0-a27b8ae7025f